bitfinex-derivatives/quotes_SOLF0:USTF0_20250626
["timestamp","ask_amount","ask_price","bid_price","bid_amount"]
[1750968518895,7.0019,142.77,142.74,7.0031]
[1750968519095,5.16456407,142.76,142.74,7.0031]
[1750968519295,7.0019,142.77,142.74,7.0031]
[1750968519594,5.16460478,142.76,142.74,7.0031]
[1750968519794,7.0019,142.77,142.74,7.0031]
[1750968519995,5.17146045,142.76,142.74,7.0031]
[1750968520193,7.0019,142.77,142.74,7.0031]
[1750968520390,5.17144863,142.76,142.74,7.0031]
[1750968520599,7.0019,142.77,142.74,7.0031]
[1750968520793,12.17384863,142.76,142.73,11.49817796]
[1750968520993,7.0024,142.76,142.73,11.49817796]
[1750968521189,7.0024,142.76,142.73,4.49467796]
[1750968522298,7.0024,142.76,142.73,11.49817796]
[1750968523594,7.0024,142.76,142.74,7.0032]
[1750968524005,7.002,142.77,142.74,7.0032]
[1750968524198,5.1660179,142.76,142.73,4.49467796]
[1750968524493,36.82,142.78,142.73,4.49467796]
[1750968524697,5.16554875,142.77,142.73,4.49467796]
[1750968524893,7.0016,142.78,142.75,7.0025]
[1750968525088,5.16554875,142.77,142.75,7.0025]
[1750968525294,7.0016,142.78,142.75,7.0025]
[1750968525494,16.73802057,142.77,142.75,7.0025]
[1750968525795,4.49467796,142.8,142.74,7.003]
[1750968525994,9.73612057,142.79,142.72,49.96715673]
[1750968526196,5.16539032,142.78,142.72,49.96715673]
[1750968526397,5.16539032,142.77,142.73,7.0034]
[1750968526598,4.49467796,142.8,142.73,7.0034]
[1750968526798,9.36008261,142.79,142.73,7.0034]
[1750968526999,5.16514386,142.78,142.73,7.0034]
[1750968527200,12.16734386,142.77,142.73,7.0034]
[1750968527401,4.49467796,142.8,142.73,7.0034]
[1750968527601,9.3596749,142.79,142.73,7.0034]
[1750968527800,7.0023,142.76,142.73,7.0034]
[1750968529497,7.0021,142.77,142.73,7.0034]
[1750968529696,4.19442011,142.79,142.73,7.0034]
[1750968529898,5.16450527,142.78,142.73,7.0034]
[1750968530098,12.16670527,142.77,142.73,7.0034]
[1750968530299,7.0022,142.77,142.73,7.0034]
[1750968530598,7.0022,142.77,142.74,7.0033]
[1750968530798,7.0023,142.76,142.74,7.0033]
[1750968532402,7.0023,142.76,142.73,7.0035]
[1750968534506,7.0021,142.77,142.74,7.0032]
[1750968535306,7.0023,142.76,142.74,7.0032]
[1750968536207,36.32,142.82,142.75,4.49181271]
[1750968536407,5.16354342,142.81,142.77,4.49155439]
[1750968536612,5.16354342,142.8,142.77,4.49155439]
[1750968536800,5.16354342,142.79,142.76,7.002]
[1750968536999,7.0006,142.8,142.76,7.002]
[1750968537198,5.16305151,142.79,142.76,7.002]
[1750968537402,7.0006,142.8,142.76,7.002]
[1750968537601,5.16283307,142.79,142.76,7.002]
[1750968537812,7.0006,142.8,142.76,7.002]
[1750968538111,5.16283307,142.79,142.76,7.002]
[1750968538311,7.0006,142.8,142.76,7.002]
[1750968538513,5.16340675,142.79,142.76,7.002]
[1750968538707,11.22345077,142.81,142.77,7.0016]
[1750968538908,5.16340675,142.8,142.75,4.49155439]
[1750968539113,5.16340675,142.79,142.75,4.49155439]
[1750968539313,36.32,142.82,142.75,4.49155439]
[1750968539514,7.0007,142.8,142.76,7.0021]
[1750968539720,5.16377804,142.79,142.76,7.0021]
[1750968540022,7.0007,142.8,142.76,7.0021]
[1750968540216,5.1774869,142.79,142.76,7.0021]
[1750968540415,5.17857807,142.78,142.77,7.0018]
[1750968540717,5.17857807,142.78,142.75,4.49155439]
[1750968541023,4.49155439,142.81,142.74,8.65247877]
[1750968541221,4.49155439,142.81,142.72,17.2949574]
[1750968541222,4.49155439,142.79,142.72,13.14403316]
[1750968541421,5.17939682,142.78,142.72,13.14403316]
[1750968541612,5.17939682,142.77,142.72,15.65657877]
[1750968541811,5.17939682,142.76,142.72,7.0041]
[1750968542017,36.32,142.78,142.72,7.0041]
[1750968542220,7.0026,142.76,142.72,7.0041]
[1750968543123,5.18000289,142.75,142.72,7.0041]
[1750968543320,7.0026,142.76,142.72,15.65657877]
[1750968543518,5.18032361,142.75,142.72,7.0041]
[1750968543718,7.0026,142.76,142.72,7.0041]
[1750968543918,5.18032635,142.75,142.72,7.0041]
[1750968544126,7.0026,142.76,142.72,15.65657877]
[1750968544425,5.18032635,142.75,142.73,7.0037]
[1750968544720,7.0026,142.76,142.72,13.14403316]
[1750968545026,5.18053454,142.75,142.72,13.14403316]
[1750968545223,7.0026,142.76,142.72,13.14403316]
[1750968545522,7.0026,142.76,142.73,7.0038]
[1750968549718,36.32,142.78,142.74,4.49155439]
[1750968549919,5.16733778,142.77,142.74,13.14403316]
[1750968550120,43.3215,142.78,142.75,7.0026]
[1750968550319,5.16675149,142.77,142.75,7.0026]
[1750968550626,5.16680904,142.76,142.74,4.49155439]
[1750968550819,2.2971,142.8,142.74,4.49155439]
[1750968550820,7.0019,142.77,142.74,11.49455439]
[1750968551822,2.2971,142.8,142.73,15.65597877]
[1750968551823,7.0025,142.76,142.73,15.65597877]
[1750968552223,7.0025,142.76,142.73,7.0035]
[1750968552423,2.2971,142.8,142.74,4.49155439]
[1750968552627,9.50099474,142.79,142.74,4.49155439]
[1750968552820,9.50099172,142.78,142.74,4.49155439]
[1750968553017,12.16242242,142.77,142.74,11.49455439]
[1750968553221,5.16052242,142.76,142.74,11.49455439]
[1750968553422,7.0019,142.77,142.74,20.14703316]
[1750968553920,2.2971,142.8,142.73,15.65597877]
[1750968554122,9.50153629,142.79,142.73,15.65597877]
[1750968554319,7.0023,142.77,142.73,15.65597877]
[1750968554517,5.16097359,142.76,142.73,15.65597877]
[1750968554724,2.2971,142.8,142.73,15.65597877]
[1750968554927,14.00042366,142.79,142.73,8.65247877]
[1750968555117,9.50886927,142.78,142.72,20.14803316]
[1750968555322,9.50886927,142.77,142.72,20.14803316]
[1750968555630,9.50898443,142.76,142.72,20.14803316]
[1750968555832,5.16133417,142.75,142.72,20.14803316]
[1750968556132,5.16133417,142.74,142.72,11.49555439]
[1750968556331,4.49155439,142.79,142.72,11.49555439]
[1750968556332,4.34736756,142.78,142.72,11.49555439]
[1750968556533,9.52261409,142.77,142.72,11.49555439]
[1750968556735,7.0028,142.75,142.72,11.49555439]
[1750968556928,5.17524653,142.74,142.72,11.49555439]
[1750968557125,7.0028,142.75,142.72,11.49555439]
[1750968557320,5.17494499,142.74,142.72,11.49555439]
[1750968557524,7.0025,142.76,142.72,11.49555439]
[1750968557726,5.17484608,142.75,142.73,7.0037]
[1750968557927,5.17484608,142.74,142.73,7.0037]
[1750968558330,7.002,142.77,142.73,7.0037]
[1750968558529,5.17449126,142.76,142.74,4.49155439]
[1750968558730,631.43904228,142.85,142.74,4.49155439]
[1750968559037,7.0002,142.81,142.77,11.49315439]
[1750968559225,4.34660418,142.8,142.77,11.49315439]
[1750968559428,4.34660418,142.79,142.77,11.49315439]
[1750968559625,4.34660418,142.78,142.77,11.49315439]
[1750968560037,40.79155439,142.84,142.77,11.49315439]
[1750968560239,4.34656556,142.83,142.77,11.49315439]
[1750968560442,4.34656556,142.82,142.77,11.49315439]
[1750968560743,4.34656556,142.81,142.77,11.49315439]
[1750968560930,4.34656556,142.8,142.77,11.49315439]
[1750968561237,7.0002,142.81,142.77,11.49315439]
[1750968561435,4.34608547,142.8,142.77,11.49315439]
[1750968561642,40.79155439,142.84,142.77,11.49315439]
[1750968561835,4.49155439,142.82,142.75,43.3024]
[1750968562025,7.0011,142.79,142.75,43.3024]
[1750968562540,7.2405,142.81,142.75,43.3024]
[1750968562730,7.0017,142.78,142.75,43.3024]
[1750968562929,4.39686275,142.8,142.75,43.3024]
[1750968562930,7.2405,142.81,142.76,7.0022]
[1750968563132,4.39684847,142.8,142.76,7.0022]
[1750968563432,7.2405,142.81,142.76,7.0022]
[1750968563433,7.0009,142.79,142.76,7.0022]
[1750968564730,7.2405,142.81,142.75,43.3027]
[1750968564927,4.40299741,142.8,142.75,43.3027]
[1750968565131,4.4030066,142.79,142.75,43.3027]
[1750968565339,7.0012,142.79,142.75,43.3027]
[1750968565837,4.49411542,142.77,142.72,3.01e-06]
[1750968566042,4.49411542,142.73,142.61,2.3443]
[1750968566242,51.17824779,142.72,142.62,129.20261217]
[1750968566543,7.0066,142.68,142.63,7.0084]
[1750968567030,36.3,142.71,142.64,4.49411542]
[1750968567443,4.9018947,142.7,142.64,4.49411542]
[1750968567632,36.3,142.71,142.64,4.49411542]
[1750968567836,4.9018947,142.7,142.66,4.49411542]
[1750968568141,36.3,142.71,142.66,4.49411542]
[1750968568340,4.49411542,142.74,142.66,4.49411542]
[1750968568541,43.8141726,142.73,142.66,4.49411542]
[1750968568738,7.5141726,142.72,142.66,4.49411542]
[1750968569038,7.5141726,142.71,142.66,4.49411542]
[1750968569343,7.78752594,142.7,142.67,7.0064]
[1750968569539,7.0051,142.71,142.67,7.0064]
[1750968569734,11.49861542,142.72,142.67,7.0064]
[1750968570038,4.50054272,142.7,142.63,36.3]
[1750968570241,14.57272174,142.69,142.63,36.3]
[1750968570538,12.06706446,142.68,142.64,7.0079]
[1750968570844,15.03998677,142.67,142.61,2.3443]
[1750968571142,4.50054272,142.68,142.61,2.3443]
[1750968571439,5.41943669,142.67,142.61,2.3443]
[1750968571639,4.50054272,142.68,142.61,2.3443]
[1750968572042,4.50054272,142.68,142.62,4.50054272]
[1750968572243,36.3,142.69,142.64,4.50054272]
[1750968572643,36.3,142.69,142.67,7.0067]
[1750968573444,36.3,142.69,142.64,4.50054272]
[1750968573850,36.3,142.69,142.67,7.0066]
[1750968574947,36.3,142.69,142.68,7.0062]
[1750968576448,36.3,142.69,142.67,7.0066]
[1750968580258,36.3,142.69,142.68,7.0062]
[1750968580953,36.3,142.69,142.67,7.0065]
[1750968583450,36.3,142.69,142.68,7.0062]
[1750968585158,36.3,142.69,142.67,7.0065]
[1750968586459,36.3,142.69,142.68,7.0062]
[1750968590466,2.4467,142.71,142.64,4.50054272]
[1750968590763,6.94724272,142.71,142.64,4.50054272]
[1750968592072,13.95204272,142.71,142.68,7.0059]
[1750968592459,36.4,142.72,142.64,4.50054272]
[1750968592654,7.97214227,142.71,142.64,4.50054272]
[1750968592861,36.4,142.72,142.64,40.90054272]
[1750968593159,14.97693433,142.71,142.64,40.90054272]
[1750968593360,7.0048,142.71,142.64,40.90054272]
[1750968594567,36.4,142.72,142.64,40.90054272]
[1750968594568,43.4045,142.72,142.69,7.0057]
[1750968594767,7.97107336,142.71,142.66,4.50054272]
[1750968594968,38.8674,142.74,142.68,4.50054272]
[1750968595169,7.96945015,142.73,142.68,4.50054272]
[1750968595369,45.871,142.74,142.68,4.50054272]
[1750968595564,7.97088091,142.73,142.68,4.50054272]
[1750968595766,38.8674,142.74,142.68,4.50054272]
[1750968596267,4.49542216,142.78,142.7,4.49542216]
[1750968596466,44.37074348,142.77,142.72,4.49542216]
[1750968596662,41.1944,142.8,142.77,7.0016]
[1750968596861,41.1944,142.8,142.74,4.49280509]
[1750968597066,7.9900397,142.79,142.74,4.49280509]
[1750968597269,5.38499019,142.78,142.76,7.0023]
[1750968597565,41.1944,142.8,142.72,36.4]
[1750968597768,41.1944,142.8,142.74,4.49280509]
[1750968598161,41.1944,142.8,142.72,36.4]
[1750968598362,48.1948,142.8,142.77,7.0016]
[1750968599663,48.1948,142.8,142.76,7.0021]
[1750968599971,7.99319526,142.79,142.76,7.0021]
[1750968600168,48.1948,142.8,142.76,7.0021]
[1750968600358,8.05495317,142.79,142.76,7.0021]
[1750968600561,48.1948,142.8,142.76,7.0021]
[1750968600757,8.07339308,142.79,142.76,7.0021]
[1750968600962,5.44614745,142.78,142.76,7.0021]
[1750968601164,48.1948,142.8,142.74,4.49280509]
[1750968601165,2.62730627,142.79,142.77,7.0017]
[1750968601366,48.1948,142.8,142.77,7.0017]
[1750968601566,8.0724001,142.79,142.77,7.0017]
[1750968601768,48.1948,142.8,142.77,7.0017]
[1750968601969,8.0724001,142.79,142.76,7.0021]
[1750968602269,48.1948,142.8,142.76,7.0021]
[1750968602471,5.44482038,142.79,142.76,7.0021]
[1750968602664,4.49280509,142.79,142.69,36.38]
[1750968602865,4.49280509,142.77,142.7,4.49280509]
[1750968603267,11.49490509,142.77,142.73,7.0035]
[1750968603467,4.49280509,142.77,142.7,4.49280509]
[1750968603769,36.38,142.76,142.74,7.003]
[1750968605264,36.38,142.76,142.7,4.49280509]
[1750968605767,43.3825,142.76,142.72,7.004]
[1750968606374,7.0029,142.75,142.71,7.0045]
[1750968606573,7.0029,142.75,142.69,40.87280509]
[1750968606875,7.0029,142.75,142.72,7.0042]
[1750968607970,7.0029,142.75,142.73,7.0037]
[1750968608463,7.0029,142.75,142.69,40.87280509]
[1750968608668,36.38,142.76,142.69,40.87280509]
[1750968609569,7.0032,142.75,142.72,7.004]
[1750968610287,7.0034,142.74,142.72,7.004]
[1750968610462,36.38,142.76,142.72,7.004]
[1750968610660,5.44109355,142.75,142.72,7.004]
[1750968610869,36.38,142.76,142.71,7.0046]
[1750968611069,5.43438773,142.75,142.71,7.0046]
[1750968611276,7.0036,142.74,142.71,7.0046]
[1750968612875,7.0036,142.74,142.7,7.005]
[1750968613065,5.43477466,142.73,142.7,7.005]
[1750968613260,7.0036,142.74,142.7,7.005]
[1750968613463,5.43474658,142.73,142.7,7.005]
[1750968613674,7.0038,142.73,142.7,7.005]
[1750968614373,7.0035,142.74,142.7,7.005]
[1750968614566,5.41415049,142.73,142.7,7.005]
[1750968614768,11.49630509,142.74,142.66,43.17800509]
[1750968614967,5.41414802,142.73,142.66,43.17800509]
[1750968615179,11.49630509,142.74,142.66,43.17800509]
[1750968615475,12.41840033,142.73,142.7,7.0049]
[1750968615671,7.0038,142.73,142.7,7.0049]
[1750968616475,7.0035,142.74,142.71,7.0047]
[1750968616677,8.03338618,142.73,142.71,7.0047]
[1750968616875,7.0035,142.74,142.71,7.0047]
[1750968617077,8.03338618,142.73,142.71,7.0047]
[1750968617275,7.0035,142.74,142.71,7.0047]
[1750968617574,2.2837,142.75,142.68,4.49280509]
[1750968617963,7.0033,142.74,142.71,7.0044]
[1750968618974,7.0033,142.74,142.72,7.0042]
[1750968619171,9.2869,142.75,142.72,7.0042]
[1750968619578,2.2837,142.75,142.71,7.0045]
[1750968619779,2.2837,142.75,142.69,4.49280509]
[1750968620074,8.0395476,142.74,142.7,7.005]
[1750968620282,6.77650509,142.75,142.7,7.005]
[1750968620574,7.004,142.73,142.7,7.005]
[1750968622280,7.004,142.73,142.68,4.49280509]
[1750968622878,7.004,142.73,142.69,7.0053]
[1750968623072,6.77650509,142.75,142.69,7.0053]
[1750968623276,8.04476939,142.74,142.69,7.0053]
[1750968623477,5.42392143,142.73,142.69,7.0053]
[1750968623677,6.77650509,142.75,142.69,7.0053]
[1750968623883,8.04503615,142.74,142.69,7.0053]
[1750968624078,5.42410128,142.73,142.69,7.0053]
[1750968624279,6.77650509,142.75,142.69,7.0053]
[1750968624480,8.0462736,142.74,142.69,7.0053]
[1750968624683,7.0043,142.72,142.69,7.0053]
[1750968626886,7.0048,142.71,142.69,7.0053]
[1750968627188,6.77650509,142.75,142.69,7.0053]
[1750968627384,8.04497014,142.74,142.69,7.0053]
[1750968627585,7.0047,142.72,142.69,7.0053]
[1750968628782,2.2837,142.75,142.68,4.49280509]
[1750968628986,8.04625792,142.74,142.68,4.49280509]
[1750968629288,15.05025792,142.73,142.7,7.005]
[1750968629586,7.004,142.73,142.7,7.005]
[1750968631078,5.42756339,142.72,142.7,7.005]
[1750968631285,7.004,142.73,142.7,7.005]
[1750968631488,5.42850986,142.72,142.7,7.005]
[1750968631683,7.004,142.73,142.7,7.005]
[1750968631884,12.43280986,142.72,142.7,7.005]
[1750968632177,2.2837,142.75,142.7,7.005]
[1750968632382,7.0041,142.73,142.7,7.005]
[1750968632582,5.42991786,142.72,142.7,7.005]
[1750968632797,7.0041,142.73,142.7,7.005]
[1750968632984,5.42991748,142.72,142.7,7.005]
[1750968633186,7.0041,142.73,142.7,7.005]
[1750968633385,8.05385255,142.72,142.7,7.005]
[1750968633687,7.0043,142.72,142.7,7.005]
[1750968633890,2.2837,142.75,142.7,7.005]
[1750968634092,8.05385255,142.74,142.7,7.005]
[1750968634291,15.05795255,142.73,142.7,7.005]
[1750968634594,8.05385255,142.72,142.7,7.005]
[1750968634890,7.0041,142.73,142.7,7.005]
[1750968635090,8.05538275,142.72,142.7,7.005]
[1750968635392,7.0041,142.73,142.7,7.005]
[1750968635592,8.05702699,142.72,142.7,7.005]
[1750968635795,7.0041,142.73,142.7,7.005]
[1750968635993,15.06142699,142.72,142.7,7.005]
[1750968636194,7.0044,142.72,142.7,7.005]
[1750968636594,8.05850841,142.71,142.7,7.005]
[1750968638588,2.6242269,142.71,142.69,7.0055]
[1750968639194,7.0044,142.72,142.69,7.0055]
[1750968640687,4.50705542,142.73,142.66,47.29566083]
[1750968640893,36.38,142.72,142.64,8.61046083]
[1750968641088,9.01341899,142.71,142.64,13.11011147]
[1750968641291,7.0055,142.7,142.66,7.0072]
[1750968641999,7.0058,142.69,142.66,7.0072]
[1750968644602,7.0058,142.69,142.67,7.0066]
[1750968644808,7.0058,142.69,142.64,13.11011147]
[1750968645203,7.0058,142.69,142.66,7.007]
[1750968646506,7.0058,142.69,142.67,7.0067]
[1750968646701,7.0058,142.69,142.64,13.11011147]
[1750968646901,40.87965064,142.72,142.64,8.61046083]
[1750968646902,4.50024879,142.71,142.64,8.61046083]
[1750968647097,4.49965064,142.68,142.62,8.61046083]
[1750968647302,7.9928602,142.67,142.62,8.61046083]
[1750968647504,7.99312776,142.66,142.61,8.61046083]
[1750968647704,7.99392519,142.65,142.6,44.93046083]
[1750968647910,7.0079,142.65,142.62,7.0089]
[1750968649012,7.0079,142.65,142.63,7.0087]
[1750968649205,36.32,142.68,142.63,4.49965064]
[1750968649610,36.32,142.68,142.66,7.0072]
[1750968651212,43.3263,142.68,142.66,7.0072]
[1750968651412,36.32,142.68,142.62,8.61046083]
[1750968651616,7.0077,142.65,142.6,44.93046083]
[1750968651816,40.81965064,142.68,142.6,44.93046083]
[1750968652015,7.96710114,142.67,142.63,7.0083]
[1750968652214,7.96710114,142.66,142.63,7.0083]
[1750968652417,40.81965064,142.68,142.62,7.009]
[1750968652619,7.96495633,142.67,142.62,7.009]
[1750968652816,7.96495633,142.66,142.62,7.009]
[1750968653013,7.0077,142.65,142.62,7.009]
[1750968653216,4.49965064,142.66,142.61,7.0095]
[1750968653418,36.32,142.68,142.59,8.61046083]
[1750968653419,4.49965064,142.62,142.59,8.61046083]
[1750968653718,2.61588208,142.65,142.55,8.61046083]
[1750968653719,7.96209104,142.61,142.55,8.61046083]
[1750968653917,30.32606489,142.75,142.6,9.002506]
[1750968654219,21.66147492,142.78,142.6,9.002506]
[1750968654220,38.14,142.78,142.65,8.61046083]
[1750968654412,4.501253,142.76,142.65,38.14]
[1750968654618,7.003,142.75,142.68,4.501253]
[1750968654823,11.750153,142.77,142.68,4.501253]
[1750968655416,4.501253,142.73,142.66,2.4458]
[1750968655614,42.641253,142.73,142.66,6.947053]
[1750968656217,42.641253,142.73,142.68,7.0059]
[1750968656218,49.645353,142.73,142.68,7.0059]
[1750968657120,49.645353,142.73,142.69,7.0056]
[1750968657720,38.14,142.73,142.66,6.947053]
[1750968658019,38.14,142.73,142.68,4.501253]
[1750968658219,38.14,142.73,142.69,3.41812568]
[1750968658422,38.14,142.73,142.7,3.41812568]
[1750968658721,38.14,142.73,142.71,3.41812568]
[1750968659024,38.14,142.73,142.72,3.41812568]
[1750968659321,38.14,142.76,142.72,3.41812568]
[1750968659521,38.14,142.76,142.73,3.41812568]
[1750968659723,38.14,142.76,142.74,10.42132568]
[1750968660023,38.14,142.76,142.75,3.41812568]
[1750968660616,38.14,142.76,142.75,10.42092568]
[1750968661026,42.641253,142.79,142.75,10.42092568]
[1750968661323,42.641253,142.79,142.76,3.41812568]
[1750968661523,42.641253,142.79,142.77,3.41812568]
[1750968661724,42.641253,142.79,142.78,3.41812568]
[1750968662614,45.1411,142.79,142.78,3.41812568]
[1750968663925,45.1411,142.79,142.75,7.0028]
[1750968664226,45.1411,142.79,142.76,3.413499]
[1750968664429,7.0013,142.78,142.74,7.0032]
[1750968664724,4.49427227,142.78,142.75,3.41248571]
[1750968665024,11.49657227,142.76,142.71,7.0044]
[1750968665228,11.49657227,142.76,142.72,3.41438525]
[1750968665525,4.49427227,142.76,142.71,7.0044]
[1750968665712,4.49427227,142.76,142.72,3.4150645]
[1750968665918,4.49427227,142.76,142.73,3.4150645]
[1750968666123,4.49427227,142.76,142.71,7.0044]
[1750968666326,4.49427227,142.76,142.72,3.40284296]
[1750968666526,7.0029,142.75,142.73,3.40284296]
[1750968666720,7.0029,142.75,142.71,7.0044]
[1750968666916,7.0029,142.75,142.72,3.40299888]
[1750968667121,7.0029,142.75,142.73,3.40299888]
[1750968667321,7.0029,142.75,142.71,7.0044]
[1750968667522,4.49427227,142.76,142.69,2.3151]
[1750968667523,7.0024,142.76,142.72,3.40330103]
[1750968667729,9.26407227,142.78,142.73,3.40330103]
[1750968667730,4.7698,142.78,142.73,3.40330103]
[1750968668030,4.7698,142.78,142.7,4.49427227]
[1750968668228,4.7698,142.78,142.71,3.40285363]
[1750968668430,7.0021,142.77,142.73,7.0037]
[1750968670123,7.0021,142.77,142.74,10.40534337]
[1750968670328,7.0021,142.77,142.74,7.0033]
[1750968671631,7.0023,142.76,142.73,7.0035]
[1750968672431,7.0023,142.76,142.72,4.49427227]
[1750968672631,7.0023,142.76,142.73,3.40169321]
[1750968672934,7.0023,142.76,142.72,4.49427227]
[1750968673230,7.0023,142.76,142.73,3.40181797]
[1750968673425,7.0023,142.76,142.73,7.0035]
[1750968673625,2.396,142.78,142.72,4.49427227]
[1750968673626,7.0019,142.77,142.72,4.49427227]
[1750968673930,7.0019,142.77,142.73,3.40157475]
[1750968674130,7.0019,142.77,142.73,7.0035]
[1750968674533,7.0023,142.76,142.73,7.0035]
[1750968675129,2.396,142.78,142.73,7.0035]
[1750968675934,7.0025,142.76,142.73,7.0035]
[1750968677337,7.0028,142.75,142.73,7.0035]
[1750968677530,2.396,142.78,142.73,7.0035]
[1750968677730,6.89027227,142.78,142.74,7.0033]
[1750968678735,7.0021,142.77,142.74,7.0033]
[1750968680430,7.0021,142.77,142.73,7.0036]
[1750968681431,4.49427227,142.76,142.69,2.3151]
[1750968681734,9.25947227,142.78,142.71,4.49427227]
[1750968682037,38.14,142.79,142.73,4.49427227]
[1750968682233,38.14,142.79,142.74,3.40093053]
[1750968682430,45.1413,142.79,142.75,7.0024]
[1750968682737,38.14,142.79,142.73,4.49427227]
[1750968682939,38.14,142.79,142.74,3.39952917]
[1750968683237,7.0018,142.78,142.73,4.49427227]
[1750968683639,7.0019,142.77,142.74,7.003]
[1750968684030,7.0019,142.77,142.73,4.49427227]
[1750968684231,7.0019,142.77,142.74,7.0032]
[1750968685328,4.49427227,142.77,142.72,38.12]
[1750968686128,7.0029,142.75,142.72,45.1241]
[1750968686439,7.0029,142.75,142.73,3.39864101]
[1750968686638,7.0029,142.75,142.72,45.1241]
[1750968686832,7.0026,142.76,142.73,10.40215102]
[1750968687030,7.0026,142.76,142.73,7.0038]
[1750968687430,7.0019,142.77,142.74,7.0031]
[1750968690034,7.0027,142.76,142.73,7.0036]
[1750968690542,44.91767227,142.79,142.72,38.12]
[1750968690740,44.91767227,142.79,142.73,3.41089935]
[1750968690941,44.91767227,142.79,142.72,45.124]
[1750968691142,44.91767227,142.79,142.73,3.41037434]
[1750968691343,44.91767227,142.79,142.72,7.004]
[1750968691534,7.0031,142.75,142.73,3.41065389]
[1750968691735,7.0031,142.75,142.72,7.004]
[1750968691935,7.0031,142.75,142.73,3.41065389]
[1750968692241,7.0031,142.75,142.72,7.004]
[1750968692543,7.0031,142.75,142.73,3.41361566]
[1750968692845,7.0031,142.75,142.72,7.004]
[1750968693039,7.0031,142.75,142.73,3.413619]
[1750968693236,7.0031,142.75,142.72,7.004]
[1750968693437,7.0031,142.75,142.73,3.4152685]
[1750968693644,7.0031,142.75,142.72,7.004]
[1750968693845,7.0031,142.75,142.73,3.41526705]
[1750968694035,7.0031,142.75,142.72,7.004]
[1750968694230,7.0031,142.75,142.73,3.41697197]
[1750968694440,7.0031,142.75,142.74,3.41697197]
[1750968695234,7.0026,142.76,142.74,3.41697197]
[1750968695438,7.0026,142.76,142.73,7.0038]
[1750968695439,7.0026,142.76,142.75,3.41697197]
[1750968696041,7.0026,142.76,142.74,3.41697197]
[1750968696242,7.0026,142.76,142.75,3.41697197]
[1750968696643,7.0026,142.76,142.74,3.41697197]
[1750968696843,7.0026,142.76,142.75,3.41697197]
[1750968697145,7.0026,142.76,142.74,3.41697197]
[1750968697346,7.0026,142.76,142.75,3.41697197]
[1750968697543,7.0026,142.76,142.74,3.41697197]
[1750968697744,7.0026,142.76,142.75,3.41697197]
[1750968698042,7.0028,142.75,142.73,3.41697197]
[1750968698347,7.0028,142.75,142.74,3.42477]
[1750968707347,7.0039,142.73,142.7,15.61566083]
[1750968709947,7.0039,142.73,142.7,8.61046083]
[1750968710445,7.0039,142.73,142.69,15.61596083]
[1750968710646,7.0044,142.72,142.69,15.61596083]
[1750968710846,4.49427227,142.74,142.69,8.61046083]
[1750968711051,42.17427227,142.74,142.69,8.61046083]
[1750968711747,4.49427227,142.72,142.69,8.61046083]
[1750968712047,4.49427227,142.72,142.68,8.61046083]
[1750968712246,4.49427227,142.72,142.67,8.61046083]
[1750968712455,7.0055,142.7,142.67,15.61706083]
[1750968712752,7.0055,142.7,142.67,7.0066]
[1750968713344,7.005,142.71,142.66,13.1047331]
[1750968713740,4.49427227,142.72,142.66,13.1047331]
[1750968714150,7.0055,142.7,142.67,7.0065]
[1750968715056,7.0058,142.69,142.66,11.50127227]
[1750968715447,7.0058,142.69,142.65,46.29046083]
[1750968715647,7.0058,142.69,142.66,7.0072]
[1750968717761,7.0058,142.69,142.65,37.68]
[1750968718159,7.0058,142.69,142.66,7.0068]
[1750968719259,7.0063,142.68,142.66,7.0068]
[1750968719554,4.49427227,142.72,142.66,7.0068]
[1750968720158,7.006,142.69,142.66,7.0068]
[1750968721159,7.006,142.69,142.67,7.0066]
[1750968723462,7.0056,142.7,142.67,7.0066]
[1750968724661,4.49427227,142.72,142.66,7.007]
[1750968725558,4.49427227,142.72,142.65,7.0075]
[1750968725866,4.49427227,142.7,142.63,20.4099331]